bitfinex-derivatives/quotes_ETHF0:USTF0_20241105
["timestamp","ask_amount","ask_price","bid_price","bid_amount"]
[1730836843338,0.33275,2404.1,2403.4,3.2078]
[1730836843543,3.2078,2404.2,2403.4,3.2078]
[1730836843544,0.33276,2404.0,2403.4,3.2078]
[1730836843745,0.33281,2403.7,2403.2,1.4647]
[1730836844041,3.2078,2403.3,2403.2,1.4647]
[1730836845238,3.2078,2403.8,2403.2,1.4647]
[1730836845545,3.54059,2403.8,2403.2,4.6725]
[1730836845743,3.2078,2403.8,2403.2,5.00536]
[1730836846046,40.8,2404.0,2403.5,3.2078]
[1730836846244,11.23743,2405.4,2403.5,3.2078]
[1730836846245,3.2078,2404.6,2403.9,0.33276]
[1730836846441,3.58714135,2405.3,2404.1,3.2078]
[1730836846442,0.33264,2404.9,2404.1,3.2078]
[1730836846750,3.2078,2405.0,2404.4,3.2078]
[1730836846751,40.8,2404.8,2404.4,3.2078]
[1730836847044,40.8,2404.8,2404.2,1.4918]
[1730836847045,3.2078,2405.6,2404.7,3.2078]
[1730836847241,0.33255,2405.5,2405.0,3.2078]
[1730836847551,0.33255,2405.5,2404.3,6.57514135]
[1730836847552,41.13257,2405.4,2404.5,3.54048]
[1730836847841,41.13257,2405.4,2404.8,3.2078]
[1730836847842,40.8,2405.4,2404.8,3.2078]
[1730836848047,41.13257,2405.4,2404.8,3.2078]
[1730836848368,40.8,2405.4,2404.8,3.2078]
[1730836849948,40.8,2405.4,2404.8,3.54044]
[1730836850145,40.8,2405.4,2404.4,3.2078]
[1730836850338,0.33264,2404.9,2404.7,3.2078]
[1730836850539,0.33265,2404.8,2404.4,3.2078]
[1730836850739,0.33266,2404.8,2404.4,3.2078]
[1730836851344,40.8,2405.4,2404.8,0.33264]
[1730836851655,44.0078,2405.4,2404.7,3.2078]
[1730836851850,0.33262,2405.0,2404.7,3.2078]
[1730836852145,0.33263,2405.0,2404.7,3.2078]
[1730836852348,0.3326,2405.2,2404.7,3.2078]
[1730836852541,44.0078,2405.4,2404.3,1.4649]
[1730836852542,3.2078,2405.0,2404.3,1.4649]
[1730836852859,3.2078,2404.7,2404.3,4.6727]
[1730836853448,3.2078,2404.7,2404.3,5.00541]
[1730836853643,3.2078,2404.7,2404.3,4.6727]
[1730836853950,0.33268,2404.6,2404.3,1.4649]
[1730836854554,3.54047,2404.7,2404.3,1.4649]
[1730836854846,3.2078,2404.9,2404.5,0.33269]
[1730836855049,3.2078,2405.2,2404.4,3.2078]
[1730836855248,3.2078,2405.5,2405.0,3.2078]
[1730836855450,1.54670774,2406.9,2405.2,3.54039]
[1730836855451,0.3325,2405.9,2405.2,3.54039]
[1730836855646,0.3325,2405.9,2405.3,1.5418]
[1730836855844,3.2078,2406.0,2405.3,1.5418]
[1730836856051,0.3325,2405.9,2405.3,1.5418]
[1730836856249,3.2078,2406.0,2405.3,1.5418]
[1730836856250,3.54029,2406.0,2405.3,1.5418]
[1730836856452,3.2078,2406.3,2405.3,1.5418]
[1730836856657,0.7113,2406.8,2405.3,1.5418]
[1730836856658,0.33238,2406.8,2405.9,0.33249]
[1730836856855,3.2078,2407.0,2405.8,3.2078]
[1730836856856,3.2078,2406.6,2405.8,3.2078]
[1730836857055,0.33248,2406.1,2405.8,3.2078]
[1730836857350,6.79494135,2406.6,2405.8,3.2078]
[1730836857351,0.33246,2406.2,2405.8,3.2078]
[1730836857555,3.2078,2406.6,2405.9,0.2909]
[1730836857751,3.2078,2406.3,2405.9,0.2909]
[1730836857959,0.33248,2406.1,2405.9,0.2909]
[1730836858152,3.2078,2406.3,2405.9,0.2909]
[1730836859152,3.2078,2406.3,2405.9,0.62339]
[1730836859351,0.3324,2406.7,2406.0,3.2078]
[1730836859352,0.33239,2406.7,2406.0,3.2078]
[1730836859552,0.33237,2406.9,2406.0,3.2078]
[1730836859762,3.2078,2407.0,2406.3,3.2078]
[1730836860149,3.2078,2407.3,2406.6,3.2078]
[1730836860656,3.58714135,2407.7,2406.6,3.2078]
[1730836860657,3.2078,2407.7,2406.6,3.2078]
[1730836860846,6.79494135,2407.7,2406.5,3.2078]
[1730836861050,6.79494135,2407.7,2406.2,5.03465]
[1730836861051,0.33234,2407.1,2406.2,5.03465]
[1730836861248,3.2078,2407.7,2406.8,0.33237]
[1730836861459,3.58714135,2408.0,2407.2,3.2078]
[1730836861460,3.2078,2408.0,2407.2,3.2078]
[1730836861852,40.8,2408.0,2407.5,3.2078]
[1730836862049,3.2078,2408.6,2407.8,3.2078]
[1730836862250,3.2078,2408.9,2407.8,3.2078]
[1730836862456,3.2078,2408.9,2407.5,1.5311]
[1730836862457,40.8,2408.8,2408.1,3.2078]
[1730836862755,0.3321,2408.8,2408.1,3.2078]
[1730836863068,3.2078,2409.3,2408.4,3.2078]
[1730836863252,0.33205,2409.2,2408.4,3.2078]
[1730836863452,3.2078,2409.3,2408.3,0.33215]
[1730836863453,3.2078,2409.3,2408.7,3.2078]
[1730836863750,0.33208,2408.9,2408.7,3.2078]
[1730836863950,3.2078,2409.3,2408.5,1.5575]
[1730836864249,0.5816,2410.5,2408.8,3.2078]
[1730836864250,3.2078,2409.7,2408.8,3.2078]
[1730836864456,3.2078,2409.7,2408.5,1.5575]
[1730836864457,3.2078,2410.2,2409.2,3.2078]
[1730836864755,3.2078,2410.2,2409.5,3.2078]
[1730836865263,0.3319,2410.3,2409.2,0.33203]
[1730836865557,3.2078,2410.5,2409.8,3.2078]
[1730836865757,0.33187,2410.4,2409.8,3.2078]
[1730836866058,3.2078,2410.5,2409.8,3.2078]
[1730836866553,0.33192,2410.1,2409.5,3.2078]
[1730836866755,0.33192,2410.1,2408.6,1.4654]
[1730836866756,3.2078,2409.8,2409.2,3.2078]
[1730836866959,3.58714135,2410.5,2409.7,3.2078]
[1730836866960,3.2078,2410.2,2409.7,3.2078]
[1730836867160,0.33192,2410.1,2409.4,3.2078]
[1730836867360,3.2078,2409.5,2408.6,1.4654]
[1730836867554,0.33209,2408.9,2408.6,1.4654]
[1730836867749,3.2078,2409.3,2408.6,1.4654]
[1730836867959,3.53983,2409.3,2408.6,4.6732]
[1730836868151,3.2078,2408.9,2408.0,13.5998]
[1730836868355,3.2078,2408.9,2408.1,3.2078]
[1730836868553,0.33211,2408.7,2408.1,3.2078]
[1730836868757,0.33217,2408.3,2408.1,3.2078]
[1730836868955,0.33217,2408.3,2407.5,1.4831]
[1730836868956,3.2078,2408.5,2407.6,3.2078]
[1730836869156,0.33221,2408.0,2407.5,1.4831]
[1730836869355,0.33214,2408.5,2407.6,0.33225]
[1730836869556,0.33214,2408.5,2407.5,1.4831]
[1730836869557,3.2078,2408.3,2407.5,1.4831]
[1730836869862,3.2078,2408.0,2407.6,3.2078]
[1730836870263,3.2078,2408.3,2407.6,3.2078]
[1730836870753,0.3322,2408.1,2407.6,3.2078]
[1730836870951,3.2078,2408.3,2407.6,3.2078]
[1730836871159,3.2078,2408.0,2406.9,3.2078]
[1730836871365,3.2078,2408.0,2407.4,3.2078]
[1730836871366,0.33224,2407.8,2407.4,3.2078]
[1730836871860,3.2078,2408.0,2407.4,3.2078]
[1730836872062,3.2078,2408.3,2407.5,0.33227]
[1730836872363,3.2078,2408.3,2407.8,3.2078]
[1730836872557,0.33218,2408.2,2407.3,0.33229]
[1730836872760,0.33218,2408.2,2406.9,3.58714135]
[1730836872761,3.53997,2408.3,2407.8,3.2078]
[1730836872966,40.8,2408.2,2407.8,3.2078]
[1730836873467,3.2078,2408.3,2407.9,0.33221]
[1730836873760,0.33209,2408.9,2408.0,0.3322]
[1730836873965,3.2078,2410.2,2408.8,3.2078]
[1730836874163,40.8,2410.9,2408.0,0.4152]
[1730836874164,0.33182,2410.8,2410.0,3.2078]
[1730836874364,44.0078,2410.9,2410.0,3.2078]
[1730836874565,44.0078,2410.9,2409.6,3.2078]
[1730836874566,3.2078,2410.5,2409.6,3.2078]
[1730836874764,3.2078,2410.7,2409.6,3.2078]
[1730836874961,3.2078,2410.7,2409.9,3.2078]
[1730836875158,0.33187,2410.5,2409.9,3.2078]
[1730836875457,0.3319,2410.3,2409.9,3.2078]
[1730836875656,0.33188,2410.4,2409.9,3.2078]
[1730836875961,3.2078,2410.7,2410.2,3.2078]
[1730836876160,0.33198,2409.7,2409.4,3.2078]
[1730836876365,0.33197,2409.8,2409.2,3.2078]
[1730836876563,3.2078,2410.1,2409.2,3.2078]
[1730836876864,0.33193,2410.0,2409.5,3.2078]
[1730836877065,0.33192,2410.1,2409.5,3.53979]
[1730836877270,0.33192,2410.1,2409.8,3.2078]
[1730836877467,3.2078,2410.6,2409.8,3.2078]
[1730836877766,0.33187,2410.5,2410.1,3.2078]
[1730836878371,3.2078,2410.6,2410.1,3.2078]
[1730836878566,0.33182,2410.8,2410.2,0.33189]
[1730836878767,40.8,2410.9,2410.7,3.2078]
[1730836879266,40.8,2410.9,2409.9,1.5514]
[1730836879267,0.33185,2410.6,2410.3,3.2078]
[1730836879464,44.0078,2410.9,2410.3,3.2078]
[1730836879659,0.01015517,2411.4,2410.6,3.2078]
[1730836879660,0.33179,2411.1,2410.6,3.2078]
[1730836879866,3.2078,2411.3,2410.6,3.2078]
[1730836880066,0.33178,2411.1,2410.6,3.53964]
[1730836880256,0.33178,2411.1,2410.6,3.2078]
[1730836880257,0.3318,2411.0,2410.6,3.2078]
[1730836880463,40.8,2411.1,2410.6,3.2078]
[1730836880666,40.8,2411.1,2410.0,1.5163]
[1730836880667,40.8,2411.1,2410.3,3.2078]
[1730836880859,40.8,2411.1,2410.0,1.5163]
[1730836880860,0.33185,2410.6,2410.1,0.33191]
[1730836881065,3.2078,2411.0,2410.0,4.7241]
[1730836881266,3.2078,2411.0,2410.1,0.33191]
[1730836881267,0.33185,2410.6,2410.1,0.33191]
[1730836881758,0.33185,2410.6,2410.0,4.7241]
[1730836881759,3.2078,2411.0,2410.0,5.05602]
[1730836881964,0.33189,2410.3,2410.0,4.7241]
[1730836882272,0.33187,2410.5,2410.0,5.05602]
[1730836882771,0.33183,2410.8,2410.3,3.53968]
[1730836882966,3.2078,2411.0,2410.7,3.2078]
[1730836882967,0.3318,2411.0,2410.7,3.2078]
[1730836883173,41.13179,2411.1,2410.7,3.2078]
[1730836883372,40.8,2411.1,2410.7,3.2078]
[1730836883677,40.8,2411.1,2410.6,3.2078]
[1730836883678,0.33179,2411.0,2410.6,3.2078]
[1730836883862,40.8,2411.1,2410.6,3.2078]
[1730836884069,40.8,2411.1,2410.0,1.5163]
[1730836884070,0.3318,2411.0,2410.9,3.2078]
[1730836884374,0.01015517,2411.4,2410.9,6.79494135]
[1730836884674,44.0078,2412.4,2411.3,6.79494135]
[1730836884864,0.82904,2412.3,2411.1,3.2078]
[1730836885065,3.2078,2411.8,2411.1,3.2078]
[1730836885267,0.33171,2411.6,2411.1,3.2078]
[1730836885474,3.2078,2411.8,2411.1,3.2078]
[1730836885670,3.2078,2411.8,2407.5,55.04634902]
[1730836885671,3.2078,2412.5,2411.4,3.2078]
[1730836885885,0.33156,2412.7,2412.1,3.53943]
[1730836886071,3.2078,2413.1,2412.1,3.2078]
[1730836886273,40.8,2413.0,2412.1,3.2078]
[1730836886467,0.33158,2412.6,2412.1,3.2078]
[1730836886869,0.33159,2412.5,2412.1,3.2078]
[1730836887376,3.2078,2412.8,2412.1,3.2078]
[1730836887568,3.2078,2412.8,2411.6,3.2078]
[1730836887569,0.8289,2412.7,2411.6,3.2078]
[1730836887769,3.2078,2412.5,2411.6,3.2078]
[1730836887971,0.33164,2412.1,2411.6,3.5395]
[1730836888179,0.33165,2412.1,2411.6,3.2078]
[1730836888476,3.2078,2412.2,2411.6,3.2078]
[1730836888685,40.8,2413.0,2408.3,1.60702353]
[1730836888686,3.2078,2411.8,2410.9,3.2078]
[1730836888874,0.33174,2411.4,2410.9,3.5396]
[1730836889180,3.2078,2411.8,2411.2,3.2078]
[1730836889674,0.33165,2412.0,2411.2,3.53956]
[1730836889982,0.33175,2411.3,2411.2,3.2078]
[1730836890271,0.33174,2411.4,2411.2,3.2078]
[1730836890473,3.2078,2411.8,2411.2,3.2078]
[1730836890788,0.33173,2411.5,2411.2,3.2078]
[1730836891075,0.33169,2411.7,2411.3,0.33174]
[1730836891378,3.53949,2411.8,2411.4,0.33173]
[1730836891589,0.33167,2411.9,2411.4,0.33172]
[1730836891873,6.177,2412.2,2411.2,3.2078]
[1730836891874,0.82924,2411.7,2411.2,3.2078]
[1730836892070,40.8,2411.8,2411.2,3.2078]
[1730836892071,0.33175,2411.3,2411.2,3.2078]
[1730836892270,44.0078,2411.8,2411.0,0.33178]
[1730836892476,0.33173,2411.5,2411.0,0.33178]
[1730836892672,0.33174,2411.4,2411.2,3.2078]
[1730836893874,0.33176,2411.3,2411.1,3.2078]
[1730836894074,0.33174,2411.4,2411.1,3.2078]
[1730836894476,0.33177,2411.2,2410.8,3.53961]
[1730836894868,44.0078,2411.8,2410.8,3.2078]
[1730836895378,0.33176,2411.3,2410.8,3.53961]
[1730836895680,0.33176,2411.3,2410.9,0.3318]
[1730836896077,0.82924,2411.7,2410.8,3.2078]
[1730836896379,3.2078,2411.5,2410.7,6.2184]
[1730836896578,0.33175,2411.3,2410.9,0.33179]
[1730836896787,44.0078,2411.8,2410.9,0.33179]
[1730836896989,0.33174,2411.4,2410.9,0.33179]
[1730836897176,0.33179,2411.1,2410.8,3.2078]
[1730836897375,0.33177,2411.2,2410.8,3.2078]
[1730836897678,3.2078,2411.5,2410.7,3.34242]
[1730836897679,0.33178,2411.1,2410.7,3.34243]
[1730836897874,3.2078,2411.5,2410.9,3.2078]
[1730836897875,0.33177,2411.2,2410.9,3.2078]
[1730836898482,1.46428229,2414.5,2410.7,3.0106]
[1730836898483,3.2078,2413.7,2411.6,3.2078]
[1730836898777,1.54670774,2414.9,2412.5,3.2078]
[1730836898778,0.33157,2412.7,2412.5,3.2078]
[1730836898981,0.82862,2413.6,2412.5,3.2078]
[1730836898982,3.53931,2413.1,2412.5,3.2078]
[1730836899174,3.2078,2413.1,2412.5,3.2078]
[1730836899376,0.33157,2412.7,2412.5,3.2078]
[1730836899682,40.8,2413.0,2412.5,3.2078]
[1730836899878,41.13152,2413.0,2412.5,3.2078]
[1730836900082,3.2078,2413.1,2412.5,3.2078]
[1730836900281,0.33152,2413.0,2412.9,3.2078]
[1730836900583,40.8,2413.0,2412.6,3.2078]
[1730836900895,40.8,2413.0,2412.6,7.12650135]
[1730836901086,3.2078,2413.5,2412.9,3.58714135]
[1730836901276,3.2078,2413.5,2411.7,1.5094]
[1730836901277,3.2078,2413.9,2413.3,6.79494135]
[1730836901478,0.33136,2414.2,2413.6,3.2078]
[1730836901785,0.8282,2414.8,2413.3,3.58714135]
[1730836901786,40.8,2414.1,2413.3,6.79494135]
[1730836901981,3.2078,2413.6,2412.7,6.2506]
[1730836902177,3.2078,2413.9,2413.0,3.2078]
[1730836902675,3.2078,2413.9,2412.8,3.58714135]
[1730836902676,0.33141,2413.8,2412.8,3.58714135]
[1730836902875,3.2078,2413.9,2413.0,3.2078]
[1730836903074,3.2078,2413.9,2412.8,3.58714135]
[1730836903274,3.62205,2413.9,2413.1,3.62217]
[1730836903473,3.2078,2413.9,2413.2,0.41435]
[1730836903683,3.62205,2413.9,2413.1,3.62217]
[1730836903880,3.2078,2413.9,2412.9,0.2901]
[1730836904081,3.2078,2413.9,2412.9,0.7045]
[1730836904082,0.41429,2413.7,2412.9,0.7045]
[1730836904279,3.62214,2413.4,2412.9,0.2901]
[1730836904585,3.2078,2413.4,2412.9,0.2901]
[1730836904783,0.41429,2413.6,2412.9,0.2901]
[1730836904983,3.2078,2413.7,2413.1,0.41436]
[1730836905184,3.2078,2413.7,2412.9,3.4979]
[1730836905379,40.8,2414.1,2413.2,3.2078]
[1730836905380,3.2078,2414.0,2413.2,3.2078]
[1730836905585,3.2078,2414.0,2413.2,6.79494135]
[1730836905778,40.8,2414.1,2413.6,0.41428]
[1730836906087,3.2078,2414.3,2413.9,0.41423]
[1730836906285,3.2078,2414.3,2413.5,3.2078]
[1730836906286,4.7808,2414.6,2413.6,3.58714135]
[1730836906485,44.0078,2414.5,2413.8,3.2078]
[1730836906688,44.0078,2414.5,2413.9,0.41423]
[1730836906986,44.0078,2414.5,2414.4,0.41416]
[1730836906987,3.2078,2414.5,2414.4,0.41416]
[1730836907182,3.2078,2414.9,2414.4,7.3494]
[1730836907481,40.8,2414.8,2414.4,3.2078]
[1730836907685,40.8,2414.8,2414.4,3.62195]
[1730836907873,40.8,2414.8,2414.4,3.2078]
[1730836908079,3.2078,2415.3,2414.4,3.2078]
[1730836908280,0.41402,2415.2,2414.6,0.41411]
[1730836908482,0.41402,2415.2,2414.0,1.5936]
[1730836908483,3.2078,2415.0,2413.9,6.79494135]
[1730836908678,3.2078,2415.0,2414.7,0.4141]
[1730836908983,3.2078,2415.0,2413.9,3.58714135]
[1730836909178,0.41406,2415.0,2414.4,0.41414]
[1730836909375,0.41406,2415.0,2414.5,0.41414]
[1730836909796,0.41407,2414.9,2414.4,0.41415]
[1730836909979,0.41407,2414.9,2413.9,3.58714135]
[1730836909980,44.0078,2415.1,2414.3,3.2078]
[1730836910287,0.4142,2414.2,2414.0,3.2078]
[1730836911190,4.1424,2414.1,2413.3,1.5936]
[1730836911376,3.62206,2413.8,2413.3,2.00793]
[1730836911682,40.8,2414.1,2413.3,3.2078]
[1730836911887,40.8,2414.1,2413.2,3.58714135]
[1730836911888,3.2078,2413.9,2413.2,3.58714135]
[1730836912180,3.2078,2413.9,2413.3,3.2078]
[1730836912381,40.8,2414.1,2413.3,3.2078]
[1730836912382,0.41423,2414.0,2413.5,0.4143]
[1730836912689,3.2078,2413.9,2413.2,3.58714135]
[1730836912882,3.2078,2413.9,2413.3,0.41434]
[1730836912883,0.41428,2413.7,2413.3,0.41434]
[1730836913184,40.8,2414.1,2413.0,1.90149]
[1730836913185,0.41432,2413.5,2413.0,1.90149]
[1730836913387,3.2078,2413.6,2413.0,1.4871]
[1730836913388,3.6221,2413.6,2413.0,1.4871]
[1730836913584,3.6221,2413.6,2413.2,0.41436]
[1730836913779,3.6221,2413.6,2413.1,0.41436]
[1730836913983,3.2078,2413.9,2413.5,0.41431]
[1730836914181,3.2078,2413.9,2413.4,0.41431]
[1730836914182,0.41426,2413.8,2413.4,0.41431]
[1730836914382,0.41427,2413.8,2413.4,0.41433]
[1730836914686,0.4143,2413.6,2413.0,1.4871]
[1730836914888,3.2078,2413.9,2413.0,1.4871]
[1730836915076,3.2078,2413.9,2413.7,0.41427]
[1730836915277,41.21422,2414.1,2413.5,3.2078]
[1730836915278,40.8,2414.1,2413.5,3.2078]
[1730836915683,3.2078,2413.9,2413.2,3.58714135]
[1730836915898,3.2078,2414.0,2413.3,3.2078]
[1730836916086,0.41422,2414.1,2413.7,0.41426]
[1730836916389,40.8,2414.0,2413.3,3.2078]
[1730836916590,0.41426,2413.9,2413.5,0.41431]
[1730836916793,40.8,2414.0,2413.8,0.41426]
[1730836916980,40.8,2414.0,2413.6,3.58714135]
[1730836917183,3.2078,2415.0,2413.7,3.2078]
[1730836917386,2.06945,2416.0,2413.7,0.41428]
[1730836917387,3.2078,2414.5,2413.7,0.41428]
[1730836917588,0.41422,2414.1,2413.7,0.41427]
[1730836917889,0.41417,2414.3,2413.6,7.20922135]
[1730836918090,40.8,2414.4,2413.6,6.79494135]
[1730836918091,0.41425,2413.9,2413.6,6.79494135]
[1730836918681,40.8,2414.4,2413.6,3.2078]
[1730836918885,0.4143,2413.6,2413.3,8.28914135]
[1730836919091,0.41419,2414.2,2413.6,0.41428]
[1730836919286,5.77254,2414.3,2413.6,0.41428]
[1730836919287,0.41424,2413.9,2413.6,0.41428]
[1730836919591,0.41426,2413.8,2413.6,3.2078]
[1730836919897,3.2078,2414.0,2413.6,3.2078]
[1730836920084,0.41425,2413.9,2413.6,3.62208]
[1730836920391,0.41425,2413.9,2413.6,3.62209]
[1730836920594,3.2078,2414.0,2413.6,3.2078]
[1730836920892,0.41426,2413.8,2413.6,3.2078]
[1730836921090,4.7371,2414.3,2413.6,3.2078]
[1730836921292,4.7371,2414.3,2413.6,3.62209]
[1730836921495,0.41425,2413.9,2413.6,3.2078]
[1730836921697,0.41425,2413.9,2413.5,0.7043]
[1730836921698,4.7371,2414.3,2413.5,0.29]
[1730836922190,0.41429,2413.7,2413.5,0.29]
[1730836922393,0.41429,2413.6,2413.5,0.29]
[1730836922588,0.41435,2413.3,2413.0,0.41438]
[1730836922791,3.2078,2413.7,2413.1,0.41438]
[1730836922991,3.2078,2413.7,2412.9,3.2078]
[1730836923195,0.41434,2413.4,2413.1,0.41437]
[1730836923493,3.2078,2413.7,2413.1,0.29]
[1730836923695,0.41425,2413.9,2413.6,0.41428]
[1730836923905,3.2078,2414.0,2413.2,3.2078]
[1730836924494,0.41429,2413.6,2413.4,0.41432]
[1730836924697,5.15129,2414.3,2413.9,0.41424]
[1730836924996,3.2078,2415.1,2414.2,3.2078]
[1730836925188,3.2078,2415.1,2414.0,3.58714135]
[1730836925189,3.2078,2415.0,2414.0,3.58714135]
[1730836925383,3.2078,2415.0,2414.3,3.2078]
[1730836925584,3.2078,2415.3,2414.6,3.2078]
[1730836925793,3.2078,2415.0,2414.3,3.2078]
[1730836925998,1.4786,2415.4,2414.3,3.2078]
[1730836925999,0.41402,2415.2,2414.7,0.4141]
[1730836926299,0.41402,2415.2,2414.1,2.56582]
[1730836926300,3.43840687,2416.3,2415.1,3.2078]
[1730836926488,3.43840687,2416.3,2414.4,10.21169497]
[1730836926489,0.02161,2416.6,2415.9,3.58714135]
[1730836926693,0.02161,2416.6,2415.5,3.58714135]
[1730836926694,3.2078,2416.2,2415.5,3.58714135]
[1730836926892,3.2078,2416.2,2415.7,3.2078]
[1730836927797,3.2078,2416.2,2415.3,1.5031]
[1730836927798,3.62166,2416.2,2415.3,1.5031]
[1730836928001,3.62166,2416.2,2415.3,3.2078]
[1730836928002,0.4139,2416.0,2415.3,3.2078]
[1730836928291,3.2078,2415.9,2415.3,3.2078]
[1730836928698,0.41392,2415.8,2415.3,3.2078]
[1730836929398,3.2078,2415.9,2415.3,3.2078]
[1730836929594,0.41399,2415.4,2414.6,3.2078]
[1730836929801,3.6217,2415.9,2414.9,7.20901135]
[1730836930004,3.6217,2415.9,2415.0,0.41405]
[1730836930005,3.2078,2415.9,2415.0,0.41405]
[1730836930305,3.2078,2415.9,2414.9,6.79494135]
[1730836930306,40.8,2415.8,2415.2,3.2078]
[1730836930599,40.8,2415.8,2415.5,3.2078]
[1730836930801,3.2078,2416.2,2415.6,0.41395]
[1730836930994,3.2078,2416.2,2415.8,3.2078]
[1730836931193,3.2078,2416.2,2415.3,1.5485]
[1730836931390,3.2078,2415.9,2415.3,1.5485]
[1730836931594,0.41387,2416.1,2415.3,1.5485]
[1730836931791,44.0078,2416.2,2415.3,1.5485]
[1730836931996,3.2078,2415.9,2415.3,1.5485]
[1730836932299,3.2078,2415.9,2415.5,3.2078]
[1730836932692,44.0078,2416.2,2415.5,3.2078]
[1730836932892,44.0078,2416.2,2415.7,0.41392]
[1730836933089,0.02161,2416.6,2416.1,3.2078]
[1730836933090,3.22941,2416.6,2416.1,3.2078]
[1730836933490,0.02161,2416.6,2416.1,3.2078]
[1730836934091,4.8377,2417.2,2416.1,3.62165]
[1730836934292,40.8,2417.1,2416.1,3.2078]
[1730836934500,40.8,2417.1,2416.5,3.2078]
[1730836934994,3.58714135,2418.0,2416.5,3.2078]
[1730836934995,0.41366,2417.3,2416.5,3.2078]
[1730836935206,3.2078,2417.1,2416.5,3.2078]
[1730836935500,0.41365,2417.4,2416.6,0.41378]
[1730836935697,3.2078,2417.5,2416.8,3.2078]
[1730836935899,0.41365,2417.4,2416.8,3.2078]
[1730836936192,0.41364,2417.4,2416.8,3.2078]
[1730836936593,0.4137,2417.1,2416.4,3.54491]
[1730836936808,3.2078,2417.5,2416.4,3.54491]
[1730836936809,0.41367,2417.3,2416.6,3.62157]
[1730836936995,3.2078,2417.5,2416.6,3.2078]
[1730836937194,3.23272,2417.5,2416.6,3.2078]
[1730836937405,3.62153,2416.9,2416.4,1.6184]
[1730836937693,0.41374,2416.9,2416.4,1.6184]
[1730836937899,3.2078,2417.2,2415.6,1.5459]
[1730836937900,7.3454,2416.8,2415.6,6.79494135]
[1730836938104,3.2078,2416.8,2415.6,6.79494135]
[1730836938303,0.4138,2416.5,2415.9,3.62169]
[1730836938598,3.2078,2416.8,2415.9,3.2078]
[1730836938805,3.2078,2416.1,2415.0,1.5489]
[1730836939106,0.41403,2415.2,2414.8,3.2078]
[1730836939310,3.2078,2415.4,2414.8,3.2078]
[1730836939698,0.41406,2415.0,2414.8,3.2078]
[1730836939901,3.2078,2415.1,2414.6,1.5589]
[1730836940206,3.2078,2415.5,2414.6,4.7667]
[1730836940598,0.41398,2415.4,2414.7,0.4141]
[1730836940798,0.41402,2415.3,2414.7,0.4141]
[1730836941006,40.8,2415.3,2414.9,0.41406]
[1730836941206,0.41404,2415.1,2414.7,4.718]
[1730836941907,0.41405,2415.1,2414.7,4.718]
[1730836942100,1.03477,2415.9,2414.7,4.718]
[1730836942101,0.41399,2415.4,2415.0,3.58714135]
[1730836942305,3.2078,2416.0,2414.7,6.79494135]
[1730836942502,3.2078,2415.7,2415.1,3.2078]
[1730836942701,0.41404,2415.1,2414.8,3.2078]
[1730836943101,0.414,2415.3,2414.8,3.2078]
[1730836943305,1.5004,2415.8,2414.1,1.5102]
[1730836943306,3.2078,2415.7,2415.1,3.2078]
[1730836943511,0.41395,2415.6,2414.8,3.2078]
[1730836943716,3.2078,2415.7,2414.8,3.2078]
[1730836943915,40.8,2415.9,2415.1,6.79494135]
[1730836944104,0.209,2417.2,2415.7,3.2078]
[1730836944105,3.2078,2416.3,2415.7,3.2078]
[1730836944303,0.41387,2416.1,2415.7,3.2078]
[1730836944708,0.41387,2416.1,2415.7,7.347]
[1730836944910,0.41387,2416.1,2415.7,3.2078]
[1730836945111,0.41387,2416.1,2415.6,0.41395]
[1730836945112,44.0078,2416.3,2415.6,3.2078]
[1730836945317,0.41393,2415.7,2415.6,3.2078]
[1730836945513,3.2078,2416.0,2415.2,1.5447]
[1730836945716,0.41396,2415.6,2415.2,1.5447]
[1730836945917,3.2078,2416.0,2415.2,1.5447]
[1730836946123,3.2078,2415.3,2414.7,3.2078]
[1730836946625,2.66315,2415.9,2414.1,1.5447]
[1730836946626,2.66315,2415.9,2414.3,0.41417]
[1730836946627,3.2078,2415.0,2414.3,0.41417]
[1730836946923,3.2078,2415.0,2414.4,3.2078]
[1730836946924,0.41411,2414.7,2414.4,3.2078]
[1730836947127,3.62186,2415.0,2414.4,3.2078]
[1730836947423,0.41405,2415.1,2414.6,0.41411]
[1730836947625,0.41403,2415.2,2414.8,0.41409]
[1730836947824,0.41403,2415.2,2414.4,6.79494135]
[1730836948026,0.41404,2415.1,2414.6,0.41411]
[1730836948218,2.66319,2415.9,2414.4,6.79494135]
[1730836948219,4.8362,2415.9,2414.7,3.2078]
[1730836948419,0.41394,2415.7,2415.2,0.41402]
[1730836948614,4.8362,2415.9,2414.5,6.79494135]
[1730836948615,3.2078,2415.6,2414.5,6.79494135]
[1730836948820,0.41399,2415.4,2415.0,3.2078]
[1730836949224,3.2078,2415.6,2414.6,0.41411]
[1730836949225,0.41404,2415.1,2414.6,0.41411]
[1730836949424,3.2078,2415.6,2414.5,6.79494135]
[1730836949627,3.2078,2415.3,2414.5,6.79494135]
[1730836949822,0.41404,2415.1,2414.8,3.2078]
[1730836950030,3.2078,2415.3,2414.8,3.2078]
[1730836950326,1.6284,2415.9,2415.1,3.2078]
[1730836950327,0.41399,2415.4,2415.1,3.2078]
[1730836950522,0.41401,2415.3,2415.1,3.2078]
[1730836950716,0.41401,2415.3,2414.1,2.58022]
[1730836950717,3.2078,2415.5,2414.4,3.2078]